Cogmind - Beta 15 @@@ ROGUE MODE // 2025.08.02 @ 19:05:45 Player: mm79 Result: Self-destructed Performance ------------- Evolutions (2) 1000 Regions Visited (9) 1800 Robots Destroyed (110) 550 Value Destroyed (2999) 2999 Prototype IDs (42) 840 Alien Tech Used (0) 0 Bonus (1310) 1310 TOTAL SCORE: 8499 Bonus ------- High Alert Combat Kills 310 Entered Garrisons 200 Used RIF Installer 500 Aligned with FarCom 300 Cogmind --------- Core Integrity 305/550 Matter 280/300 Energy 248/275 System Corruption 0% Temperature Cool (-100) Movement Rolling (105) Ox1 Location -8/Materials Parts ------- > --- POWER (1) -------- Deuterium Engine > --- PROPULSION (4) --- Wheel Wheel Compact Wheel Compact Wheel > --- UTILITY (4) ------ Cryofiber Web Improved Heat Sink Huge Storage Unit Reflective Plating > --- WEAPON (2) ------- Improved Medium Laser Advanced Beam Rifle > --- INVENTORY (25) --- Nuclear Core Fission Core Fission Core Compact Wheel Improved Heat Sink Large Battery (200) Trap Scanner Advanced Targeting Computer Improved Propulsion Shielding Hacking Suite Hacking Suite System Shield Corruption Screen Corruption Screen Corruption Screen System Restoration Module Plasma Cannon Plasma Cannon Plasma Cannon Plasma Cannon Guided Plasma Cannon Heavy Rocket Launcher Peak State ------------ > --- POWER ------------ Deuterium Engine > --- PROPULSION ------- Wheel Wheel Compact Wheel Compact Wheel > --- UTILITY ---------- Cryofiber Web Improved Heat Sink Huge Storage Unit Reflective Plating > --- WEAPON ----------- Improved Medium Laser Advanced Beam Rifle > --- INVENTORY -------- Nuclear Core Fission Core Fission Core Compact Wheel Improved Heat Sink Large Battery Trap Scanner Advanced Targeting Computer Improved Propulsion Shielding Hacking Suite Hacking Suite System Shield Corruption Screen Corruption Screen Corruption Screen System Restoration Module Plasma Cannon Plasma Cannon Plasma Cannon Plasma Cannon Guided Plasma Cannon Heavy Rocket Launcher [Rating: 32] Favorites ----------- Power Ion Engine Engine Ion Engine Propulsion Compact Wheel Treads Light Treads Leg Aluminum Leg Wheel Compact Wheel Utility Huge Storage Unit Device Heat Sink Storage Huge Storage Unit Protection Medium Armor Plating Weapon Improved Medium Laser Energy Gun Improved Medium Laser Energy Cannon Advanced Beam Cannon Ballistic Gun Light Assault Rifle Launcher Heavy Rocket Launcher Special Melee Weapon Improved Datajack Build | -11 -10 -10 -9 -9 -9 -8 -8 -8 -8 ------- Run | Yrd Mat Min Mat Min Exi Min Mat Gar Mat Slots Evolved 4 | . . . 2 . . . 2 . . Power . | . . . . . . . . . . Propulsion 2 | . . . . . . . 2 . . Utility 2 | . . . 2 . . . . . . Weapon . | . . . . . . . . . . Parts Attached 71 | 7 7 1 12 3 2 2 13 12 12 Power 6 | 1 . . 2 . . . 1 1 1 Engine 6 | 1 . . 2 . . . 1 1 1 Core . | . . . . . . . . . . Reactor . | . . . . . . . . . . Propulsion 23 | 2 3 1 1 . . . 5 6 5 Treads 5 | . . . . . . . 1 4 . Leg 1 | . . . . . . . . 1 . Wheel 17 | 2 3 1 1 . . . 4 1 5 Hover . | . . . . . . . . . . Flight . | . . . . . . . . . . Utility 21 | 2 1 . 5 . . 1 4 4 4 Device 13 | 1 . . 4 . . . 3 3 2 Storage 3 | 1 1 . 1 . . . . . . Processor . | . . . . . . . . . . Hackware . | . . . . . . . . . . Protection 5 | . . . . . . 1 1 1 2 Artifact . | . . . . . . . . . . Weapon 21 | 2 3 . 4 3 2 1 3 1 2 Energy Gun 13 | 2 2 . 3 3 . . 1 . 2 Energy Cannon 3 | . . . . . 1 . 1 1 . Ballistic Gun 1 | . 1 . . . . . . . . Ballistic Cannon . | . . . . . . . . . . Launcher 3 | . . . 1 . . 1 1 . . Special Weapon . | . . . . . . . . . . Impact Weapon . | . . . . . . . . . . Slashing Weapon . | . . . . . . . . . . Piercing Weapon . | . . . . . . . . . . Special Melee Weapon 1 | . . . . . 1 . . . . Unidentified Prototypes 3 | . . . . 1 . . 1 . 1 Parts Lost 32 | . 3 1 4 . . . 6 10 8 Power 2 | . . . . . . . . 1 1 Propulsion 14 | . 3 1 1 . . . 2 5 2 Utility 12 | . . . 2 . . . 4 3 3 Weapon 4 | . . . 1 . . . . 1 2 Highest Loss Streak 3 | . 1 1 2 . . . 3 3 2 To Critical Strikes . | . . . . . . . . . . Average Backups 21 | 3 14 20 22 24 24 24 24 20 23 Power 3 | . 2 2 1 1 3 4 4 4 3 Propulsion . | 2 . . . 2 2 2 . . . Utility 8 | . 6 10 8 8 9 8 10 7 12 Weapon 7 | . 4 7 10 11 9 10 8 8 6 Tool/Special . | . . . . . . . . . . Unused Backups 51 | . 6 1 9 2 . . 9 . 24 Power 5 | . . 1 . . . . 1 . 3 Propulsion 6 | . 4 . . . . . . . 2 Utility 22 | . 1 . 5 . . . 1 . 15 Weapon 18 | . 1 . 4 2 . . 7 . 4 Tool/Special . | . . . . . . . . . . Average Slot Usage (%) 97 | . 99 89 98 100 100 99 99 93 99 Engine 10 | . 14 14 11 11 11 11 9 8 8 Treads 5 | . . . . . . . . 15 12 Wheel 22 | . 27 18 21 22 22 22 35 11 22 Device 22 | . 14 14 32 33 33 22 17 23 18 Storage 10 | . 14 14 11 11 11 11 9 9 9 Protection 4 | . . . . . . 10 8 3 8 Energy Gun 16 | . 27 28 21 22 11 11 3 13 17 Energy Cannon 3 | . . . . . 5 10 14 4 . Peak Build Rating 32 | 7 9 9 17 19 19 19 28 29 32 Average Rating 19 | 4 8 8 13 17 18 18 23 26 28 On Entrance 14 | . 7 9 9 17 17 18 18 28 25 Naked Turns . | . . . . . . . . . . Heaviest Build 107 | 15 50 50 95 95 95 102 106 107 102 Greatest Support 58 | 26 32 32 32 32 32 32 52 46 58 Greatest Overweight (x) 10 | . 1 3 5 2 2 3 5 10 6 Average Overweight (x) 2 | . . 2 1 2 2 3 1 5 2 Largest Inventory Capacity 25 | 8 20 20 25 25 25 25 25 25 25 Average Capacity 23 | 6 16 20 24 25 25 25 25 25 25 Most Carried 25 | 7 20 20 25 25 25 25 25 25 25 Average Carried 21 | 4 14 19 22 23 24 24 24 20 23 Final Capacity 25 | 8 20 20 25 25 25 25 25 25 25 Final Carried 25 | 7 20 20 25 23 25 24 25 19 22 Class Distribution -------------------- 65% | Scavenger-Mutant 34% | Mutant Dominant Class ---------------- Mutant | -10/Materials Mutant | -10/Mines Scavenger-Mutant | -9/Materials Scavenger-Mutant | -9/Mines Scavenger-Mutant | -9/Exiles Mutant | -8/Mines Scavenger-Mutant | -8/Materials Scavenger-Mutant | -8/Garrison Scavenger-Mutant | -8/Materials Resources | -11 -10 -10 -9 -9 -9 -8 -8 -8 -8 ----------- Run | Yrd Mat Min Mat Min Exi Min Mat Gar Mat Matter Collected 1058 | 246 102 10 110 60 . 39 184 217 90 Remotely . | . . . . . . . . . . Salvage Created 4455 | 21 505 461 561 27 . 10 839 1038 993 Parts 213 | 3 26 12 27 . . 5 46 46 48 Haulers Intercepted 3 | . 1 . 2 . . . . . . Recyclers Shooed 8 | . 2 4 2 . . . . . . Parts Field Recycled . | . . . . . . . . . . Retrieved Matter . | . . . . . . . . . . Parts Self-Destructed . | . . . . . . . . . . Prevented . | . . . . . . . . . . Kills | -11 -10 -10 -9 -9 -9 -8 -8 -8 -8 ------- Run | Yrd Mat Min Mat Min Exi Min Mat Gar Mat Combat Hostiles Destroyed 88 | . 13 2 10 2 . 3 18 24 16 Guns 50 | . 13 1 5 2 . . 2 13 14 Cannons 14 | . . . . . . . 10 4 . AOE 20 | . . . 5 . . 3 6 6 . Classes Destroyed 13 | 1 5 1 1 1 . . . 3 1 Worker 4 | . . 1 . . . . . . 3 Builder 2 | . 1 . 1 . . . . . . Tunneler 2 | 1 . 1 . . . . . . . Hauler 3 | . 1 . 2 . . . . . . Recycler 12 | . 2 4 2 . . . 2 . 2 Watcher 1 | . . . . . . . . . 1 Swarmer 29 | . 9 . 4 . . 3 7 4 2 Grunt 32 | . 4 2 2 . . . 6 10 8 Brawler 2 | . . . . . . . . 2 . Duelist 1 | . . . . . . . . 1 . Sentry 19 | . . . 4 . . . 5 6 4 Hunter 3 | . . . . . . . . 1 2 Assembled 2 | . . . . 2 . . . . . Best Kill Streak 7 | 1 3 3 5 1 . 3 6 4 7 Combat Bots Only 6 | . 3 2 5 1 . 3 6 4 3 Max Kills in Single Turn 5 | 1 1 1 5 1 . 3 4 3 1 Gunslinging . | . . . . . . . . . . Exploded 5 | . . . 5 . . 3 4 3 . Melee . | . . . . . . . . . . Uniques/NPCs Destroyed . | . . . . . . . . . . Combat | -11 -10 -10 -9 -9 -9 -8 -8 -8 -8 -------- Run | Yrd Mat Min Mat Min Exi Min Mat Gar Mat Hostile Shots Fired 399 | . 57 9 53 9 . 1 66 126 78 Missed 104 | . 16 1 11 3 . . 14 38 21 Hits 295 | . 41 8 42 6 . 1 52 88 57 Melee 3 | . . . . . . . . 3 . Projectile 292 | . 41 8 42 6 . 1 52 85 57 Critical Strikes 12 | . . . 1 . . . 2 6 3 Part Disruptions 1 | . . . . 1 . . . . . Damage Taken 3291 | . 359 109 380 69 . 5 542 1008 819 Core 500 | . 93 30 132 . . . 54 98 93 Absorbed by Shields 568 | . . . 127 26 . 2 202 211 . Ignored by Resistances 70 | . . . . . . . 14 56 . Core Remaining (%) 72 | 100 . 50 . . . 67 . . . Volleys Fired 340 | 1 56 26 50 14 . 1 39 89 64 Largest 2 | 2 2 2 2 2 . 1 2 2 2 Hottest 130 | 90 100 100 100 130 . 33 128 124 117 Shots Fired 628 | 2 110 46 97 25 . 1 73 149 125 Gun 503 | 2 110 46 96 25 . . 12 87 125 Cannon 117 | . . . . . . . 58 59 . Launcher 8 | . . . 1 . . 1 3 3 . Special . | . . . . . . . . . . Kinetic . | . . . . . . . . . . Thermal 612 | 1 103 46 96 25 . . 70 146 125 Explosive 8 | . . . 1 . . 1 3 3 . Electromagnetic 8 | 1 7 . . . . . . . . Robot Hit Streak 16 | 2 8 9 11 12 . . 8 16 15 Robot Miss Streak 4 | . 4 3 2 4 . . 2 4 3 Penetration Max . | . . . . . . . . . . Secondary Targets 1 | . 1 . . . . . . . . Max Gunslinging Chain 1 | . 1 . . . . . . . . Shots Hit Robots 422 | 2 58 31 75 13 4 . 50 92 97 Core Hits 181 | 1 26 14 26 4 . 3 30 42 35 Critical Kills . | . . . . . . . . . . Critical Parts Destroyed . | . . . . . . . . . . Critical Strikes 27 | . 6 2 4 2 . . . 6 7 Burn 27 | . 6 2 4 2 . . . 6 7 Melee Attacks 4 | . . . . . 4 . . . . Impact . | . . . . . . . . . . Slashing . | . . . . . . . . . . Piercing . | . . . . . . . . . . Sneak Attacks 4 | . . . . . 4 . . . . Combat Hostiles . | . . . . . . . . . . Follow-up Attacks . | . . . . . . . . . . Damage Inflicted 7998 | 24 764 400 1160 214 . 136 1331 2156 1813 Guns 5640 | 24 764 400 951 214 . . 175 1299 1813 Cannons 1312 | . . . . . . . 847 465 . Explosions 1046 | . . . 209 . . 136 309 392 . Melee . | . . . . . . . . . . Ramming . | . . . . . . . . . . Kinetic . | . . . . . . . . . . Thermal 6895 | 12 719 400 951 214 . . 1022 1764 1813 Explosive 1046 | . . . 209 . . 136 309 392 . Electromagnetic 57 | 12 45 . . . . . . . . Impact . | . . . . . . . . . . Slashing . | . . . . . . . . . . Piercing . | . . . . . . . . . . Highest Corruption . | . . . . . . . . . . Average Corruption . | . . . . . . . . . . Corruption Purged . | . . . . . . . . . . Corruption Blocked . | . . . . . . . . . . Overload Shots . | . . . . . . . . . . Overflow Damage 55 | . . . . . . . 2 53 . Projectiles 2 | . . . . . . . 2 . . Explosions 53 | . . . . . . . . 53 . Melee . | . . . . . . . . . . Knockbacks . | . . . . . . . . . . Impact . | . . . . . . . . . . Kinetic . | . . . . . . . . . . Secondary . | . . . . . . . . . . Self-Inflicted Damage 38 | . . . 38 . . . . . . Shots 1 | . . . 1 . . . . . . Rammed . | . . . . . . . . . . Targets Rammed . | . . . . . . . . . . Kicked . | . . . . . . . . . . Crushed . | . . . . . . . . . . Highest Temperature 375 | 15 375 216 21 90 . . 287 277 . Average Temperature 89 | 10 113 90 6 39 . . 85 110 . Received Heat Transfer 1373 | . 66 60 80 14 . . 282 529 342 Effects 7 | . 5 2 . . . . . . . Shutdowns 1 | . 1 . . . . . . . . Energy Bleed 3 | . 3 . . . . . . . . Interference 3 | . 1 2 . . . . . . . Siege Activations . | . . . . . . . . . . Martial Activations . | . . . . . . . . . . Shielding Activations . | . . . . . . . . . . Robots Disrupted . | . . . . . . . . . . Combat Hostiles . | . . . . . . . . . . Robots Corrupted . | . . . . . . . . . . Combat Hostiles . | . . . . . . . . . . Parts Fried . | . . . . . . . . . . Impact Corruptions . | . . . . . . . . . . Robots Melted 5 | . . 1 1 . . . . 1 2 Combat Hostiles 4 | . . 1 . . . . . 1 2 Parts Melted 37 | . 8 4 9 . . . 2 6 8 Heat Transferred 17286 | 37 2516 1295 2819 666 . . 1887 3885 4181 Parts Sabotaged . | . . . . . . . . . . Parts Stolen . | . . . . . . . . . . Parts Stripped . | . . . . . . . . . . Power Chain Reactions . | . . . . . . . . . . Alert | -11 -10 -10 -9 -9 -9 -8 -8 -8 -8 ------- Run | Yrd Mat Min Mat Min Exi Min Mat Gar Mat Maximum Alert Level 3 | . . . . . . . 1 3 2 Low Security (%) 59 | 100 100 100 100 100 . 100 90 5 . Level 1 10 | . . . . . . . 10 6 46 Level 2 16 | . . . . . . . . 35 53 Level 3 12 | . . . . . . . . 53 . Level 4 . | . . . . . . . . . . Level 5 . | . . . . . . . . . . High Security . | . . . . . . . . . . Max Security . | . . . . . . . . . . Peak Influence 1018 | 5 78 30 129 10 . 78 236 1018 495 Initial 495 | . . . . 10 . . . 141 495 Average 233 | . 22 6 27 . . 13 58 642 398 Influence Increases 2938 | 5 361 80 350 . . 78 597 977 490 Destroy 0b10 Robot/C 1720 | . 260 40 200 . . 60 360 480 320 Destroy 0b10 Robot/NC 120 | 5 20 30 25 . . . 10 . 30 Destroy Leader 348 | . 52 10 54 . . 10 90 40 92 Successful Hack 90 | . 28 . 36 . . . 10 . 16 Disable Machine 30 | . . . 15 . . . 15 . . Anti-Garrison Action 250 | . . . . . . . . 250 . Destroy Structure 110 | . 1 . 5 . . 8 37 57 2 Lose Combat Pursuer 270 | . . . 15 . . . 75 150 30 Influence Decreases 2523 | 5 361 80 322 28 . 76 381 177 1093 Entered New Map 620 | . . . . 18 . . 2 77 523 Time Decay 1631 | 5 331 70 300 10 . 76 349 . 490 Lost Part 252 | . 30 10 12 . . . 20 100 80 Lost Ally 20 | . . . 10 . . . 10 . . Squads Dispatched 8 | . 3 . . . . . 2 . 3 Investigation 1 | . . . . . . . . . 1 Extermination . | . . . . . . . . . . Reinforcement 7 | . 3 . . . . . 2 . 2 Assault . | . . . . . . . . . . Garrison . | . . . . . . . . . . Intercept . | . . . . . . . . . . Searches Triggered . | . . . . . . . . . . Construction Impeded 1 | . . . . . . . . . 1 Haulers Reinforced . | . . . . . . . . . . Active Scanning Responses . | . . . . . . . . . . Cargo Convoy Interrupts . | . . . . . . . . . . Stealth | -11 -10 -10 -9 -9 -9 -8 -8 -8 -8 --------- Run | Yrd Mat Min Mat Min Exi Min Mat Gar Mat Distress Signals 9 | . 1 . 1 . . . 5 . 2 Communications Jammed . | . . . . . . . . . . Distress Signals . | . . . . . . . . . . Times Spotted 143 | . 24 2 16 7 . 3 33 27 31 Peak Tracking Total 8 | . 5 2 6 2 . 3 8 6 4 Tactical Retreats 10 | . . . 1 . . . 2 5 2 Traps | -11 -10 -10 -9 -9 -9 -8 -8 -8 -8 ------- Run | Yrd Mat Min Mat Min Exi Min Mat Gar Mat Traps Triggered 7 | . . . . . . . . 6 1 Indirectly . | . . . . . . . . . . Trap Hack Attempts . | . . . . . . . . . . Triggered . | . . . . . . . . . . Disarmed . | . . . . . . . . . . Reprogrammed . | . . . . . . . . . . Reused . | . . . . . . . . . . Traps Extracted . | . . . . . . . . . . Installed . | . . . . . . . . . . Triggered . | . . . . . . . . . . Machines | -11 -10 -10 -9 -9 -9 -8 -8 -8 -8 ---------- Run | Yrd Mat Min Mat Min Exi Min Mat Gar Mat Machines Disabled 2 | . . . 1 . . . 1 . . Max in Single Turn 1 | . . . 1 . . . 1 . . Garrison Access 1 | . . . . . . . . . 1 Machines Repaired . | . . . . . . . . . . Machines Dismantled . | . . . . . . . . . . Machines Sabotaged . | . . . . . . . . . . Overloaded Fab Kills . | . . . . . . . . . . Hacking | -11 -10 -10 -9 -9 -9 -8 -8 -8 -8 --------- Run | Yrd Mat Min Mat Min Exi Min Mat Gar Mat Machines Accessed 29 | . 7 . 5 . 1 . 8 3 5 Terminals 20 | . 5 . 4 . . . 5 3 3 Fabricators . | . . . . . . . . . . Repair Stations . | . . . . . . . . . . Recycling Units 6 | . 2 . 1 . . . 2 . 1 Scanalyzers . | . . . . . . . . . . Garrison Access 2 | . . . . . . . 1 . 1 Total Hacks 98 | . 27 . 26 . 1 . 20 8 16 Successful 58 | . 17 . 18 . 1 . 12 . 10 Failed 40 | . 10 . 8 . . . 8 8 6 Catastrophic 2 | . . . . . . . . 2 . Database Lockouts . | . . . . . . . . . . Manual 66 | . 25 . 18 . 1 . 13 . 9 Terminals 77 | . 22 . 23 . . . 13 8 11 Fabricators . | . . . . . . . . . . Repair Stations . | . . . . . . . . . . Recycling Units 18 | . 5 . 3 . . . 6 . 4 Scanalyzers . | . . . . . . . . . . Garrison Access 2 | . . . . . . . 1 . 1 Terminal Hacks 18 | . 4 . 10 . 1 . 1 . 2 Robot Analysis 8 | . 2 . 6 . . . . . . Prototype ID Bank 1 | . . . 1 . . . . . . Terminal Index 3 | . 1 . 1 . . . . . 1 Locate Traps 3 | . . . 1 . . . 1 . 1 Recall Reinforcements 1 | . 1 . . . . . . . . Hauler Manifests 1 | . . . 1 . . . . . . Proto ID Catalog 1 | . . . . . 1 . . . . Fabricator Hacks . | . . . . . . . . . . Repair Station Hacks . | . . . . . . . . . . Recycling Unit Hacks 7 | . 2 . 1 . . . 2 . 2 Report Inventory 5 | . 2 . 1 . . . 1 . 1 Retrieve Components 2 | . . . . . . . 1 . 1 Scanalyzer . | . . . . . . . . . . Garrison Access Hacks 2 | . . . . . . . 1 . 1 Unlock Access 1 | . . . . . . . 1 . . Seal Access 1 | . . . . . . . . . 1 Unauthorized Hacks 31 | . 11 . 7 . . . 8 . 5 Terminals 26 | . 9 . 7 . . . 6 . 4 Assimilate 3 | . 1 . 1 . . . 1 . . Botnet 5 | . 2 . 2 . . . . . 1 Operators 2 | . 1 . 1 . . . . . . Skim 16 | . 5 . 3 . . . 5 . 3 Fabricators . | . . . . . . . . . . Repair Stations . | . . . . . . . . . . Recycling Units 5 | . 2 . . . . . 2 . 1 Reject 3 | . . . . . . . 2 . 1 Mask 2 | . 2 . . . . . . . . Scanalyzers . | . . . . . . . . . . Garrison Access . | . . . . . . . . . . Data Cores Recovered . | . . . . . . . . . . Used . | . . . . . . . . . . Hacking Detections 23 | . 5 . 5 . . . 6 3 4 Full Trace Events 1 | . . . . . . . . 1 . Feedback Events . | . . . . . . . . . . Feedback Blocked . | . . . . . . . . . . Robot Schematics Acquired . | . . . . . . . . . . Robots Built . | . . . . . . . . . . Authchips . | . . . . . . . . . . Time . | . . . . . . . . . . Total Robot Build Rating . | . . . . . . . . . . Part Schematics Acquired . | . . . . . . . . . . Parts Built . | . . . . . . . . . . Authchips . | . . . . . . . . . . Time . | . . . . . . . . . . Total Part Build Rating . | . . . . . . . . . . Parts Repaired . | . . . . . . . . . . Time . | . . . . . . . . . . Parts Recycled . | . . . . . . . . . . Recycled Matter . | . . . . . . . . . . Retrieved Matter . | . . . . . . . . . . Retrieved Components 12 | . . . . . . . 3 . 9 Parts Scanalyzed . | . . . . . . . . . . Part Schematics Acquired . | . . . . . . . . . . Parts Damaged . | . . . . . . . . . . Bothacking | -11 -10 -10 -9 -9 -9 -8 -8 -8 -8 ------------ Run | Yrd Mat Min Mat Min Exi Min Mat Gar Mat Used RIF Installer 1 | . . . . . . . . 1 . Robots Hacked 4 | . . . . . 4 . . . . Non-combat 3 | . . . . . 3 . . . . Combat 1 | . . . . . 1 . . . . Robot Hacks Applied 4 | . . . . . 4 . . . . parse_system 4 | . . . . . 4 . . . . Relay Couplers Released . | . . . . . . . . . . Fabnet Peak Effective % . | . . . . . . . . . . Robots Rewired . | . . . . . . . . . . Allies Hacked . | . . . . . . . . . . Hacks Repelled . | . . . . . . . . . . Allies | -11 -10 -10 -9 -9 -9 -8 -8 -8 -8 -------- Run | Yrd Mat Min Mat Min Exi Min Mat Gar Mat Total Allies 4 | . 1 . 1 1 . . 1 . . Largest Group 2 | . 1 1 2 2 . . 1 . . Highest-Rated Group 41 | . 10 10 20 41 . . 10 . . Highest-Rated Ally 31 | . 10 10 10 31 . . 10 . . Total Orders 49 | . 10 4 17 1 . . 17 . . STAY 28 | . 6 2 10 1 . . 9 . . FOLLOW 21 | . 4 2 7 . . . 8 . . Ally Attacks 17 | . . . . 17 . . . . . Total Damage 230 | . . . . 230 . . . . . Kills 6 | . . . . 6 . . . . . Allies Corrupted . | . . . . . . . . . . Allies Melted . | . . . . . . . . . . Intel | -11 -10 -10 -9 -9 -9 -8 -8 -8 -8 ------- Run | Yrd Mat Min Mat Min Exi Min Mat Gar Mat Active Infowar (turns) 3100 | 21 1167 66 950 553 343 . . . . Seismic 3100 | 21 1167 66 950 553 343 . . . . Robot Analysis Total 8 | . 2 . 6 . . . . . . Derelict Logs Recovered 1 | . . . . 1 . . . . . Drone Launches . | . . . . . . . . . . Drone Recoveries . | . . . . . . . . . . Exploration | -11 -10 -10 -9 -9 -9 -8 -8 -8 -8 ------------- Run | Yrd Mat Min Mat Min Exi Min Mat Gar Mat Turns Passed 8302 | 64 1290 241 950 553 343 538 1140 1889 1294 Spaces Moved 4402 | 51 680 87 476 373 256 367 663 864 585 Core 1 | 1 . . . . . . . . . Treads . | . . . . . . . . . . Legs . | . . . . . . . . . . Wheels 4401 | 50 680 87 476 373 256 367 663 864 585 Hover . | . . . . . . . . . . Flight . | . . . . . . . . . . Fastest Speed 50 | 50 90 105 115 130 130 145 105 115 110 Average Speed 134 | 86 102 131 128 130 130 145 112 178 136 Slowest Speed 230 | 90 115 145 175 130 130 145 155 230 190 Overloaded Moves . | . . . . . . . . . . Propulsion Burnouts . | . . . . . . . . . . Robots Hopped . | . . . . . . . . . . Potential Cave-ins . | . . . . . . . . . . Cave-ins Triggered . | . . . . . . . . . . Exploration Rate (%) 56 | 4 94 11 36 80 55 90 74 75 47 Regions Visited 9 Branch Regions 4 Pre-discovered Areas 1 | . . . . . . . 1 . . Known Exits Taken 3 | . . 1 . 1 . . 1 . . Unknown Exits Taken 5 | 1 1 . 1 . 1 1 . . . Scrap Searched 3 | . . . . 2 . 1 . . . Spaces Dug 71 | . . . . . . 10 34 27 . Terrain Destroyed 87 | . . . 4 . . 10 34 39 . Melee . | . . . . . . . . . . Projectile 1 | . . . . . . . . 1 . AOE 86 | . . . 4 . . 10 34 38 . Terrain Rammed . | . . . . . . . . . . Walls Destroyed . | . . . . . . . . . . Machines Disabled . | . . . . . . . . . . Actions | -11 -10 -10 -9 -9 -9 -8 -8 -8 -8 --------- Run | Yrd Mat Min Mat Min Exi Min Mat Gar Mat Total 6181 | 65 1166 167 726 418 267 371 991 1053 957 Wait 1166 | . 388 52 145 22 . . 239 48 272 Move 4394 | 50 679 86 475 372 255 366 663 863 585 Hop . | . . . . . . . . . . Pick Up 101 | 7 24 1 25 2 4 . 21 1 16 Fast Attach 20 | 7 1 1 1 . . . 2 5 3 Attach 33 | . 2 . 5 1 2 1 7 7 8 Detach . | . . . . . . . . . . Swap 33 | . 5 . 7 3 . 2 5 10 1 Drop 62 | . 11 1 18 4 2 1 15 2 8 Fire 340 | 1 56 26 50 14 . 1 39 89 64 Melee 4 | . . . . . 4 . . . . Ram . | . . . . . . . . . . Kick . | . . . . . . . . . . Crush . | . . . . . . . . . . Escape Stasis 28 | . . . . . . . . 28 . Rewire . | . . . . . . . . . . Trap . | . . . . . . . . . . Miscellaneous . | . . . . . . . . . . Route ------- -11/Scrapyard -10/Materials (discovered 5 exits: *Mat x3 / [*Min] / [*Sub]) -10/Mines -9/Materials (discovered 2 exits: *Mat / [*Min]) -9/Mines (discovered 3 exits: *Mat x2 / *Exi) -9/Exiles -8/Mines -8/Materials (discovered 4 exits: *Fac x3 / Gar) -8/Garrison (discovered 3 exits: *Mat x3) -8/Materials History --------- Turn | Location | Event 12 | -11/Scrapyard | Discovered new exit (range 16) 65 | -11/Scrapyard | Entered Materials 235 | -10/Materials | Discovered new exit (range 10) 300 | -10/Materials | Build established: Mutant 646 | -10/Materials | Discovered new exit (range 5) 809 | -10/Materials | Discovered new exit (range 8) 999 | -10/Materials | Discovered new exit (range 8) 1134 | -10/Materials | Identified exit to Materials 1215 | -10/Materials | Learned Storage trap positions 1241 | -10/Materials | Learned Storage terminal intel 1287 | -10/Materials | Learned 2 Storage zone layouts 1324 | -10/Materials | Learned location of 1 exit from Storage 1355 | -10/Materials | Entered Mines 1355 | -10/Mines | Accompanied by 1 ally 1367 | -10/Mines | Discovered exit to Materials (range 9) 1596 | -10/Mines | Entered Materials 1596 | -9/Materials | Accompanied by 1 ally 1596 | -9/Materials | Evolved 2 slots: Utility x2 1721 | -9/Materials | Discovered new exit (range 12) 1896 | -9/Materials | Build established: Scavenger-Mutant 2378 | -9/Materials | Discovered new exit (range 13) 2546 | -9/Materials | Entered Mines 2546 | -9/Mines | Accompanied by 1 ally 2553 | -9/Mines | Received a Rocket Launcher from a helpful Derelict 2658 | -9/Mines | Found a damaged Exp. Sensor Array with a note attached 2678 | -9/Mines | Assembled infested the area 2787 | -9/Mines | Received a Mining Laser from a helpful Derelict 2957 | -9/Mines | Discovered new exit (range 3) 2972 | -9/Mines | Identified exit to Exiles 2979 | -9/Mines | Discovered new exit (range 8) 3093 | -9/Mines | Deemed a non-threat by the Exiles lab entrance 3099 | -9/Mines | Entered Exiles 3140 | -9/Exiles | Met 8R-AWN 3161 | -9/Exiles | Met EX-HEX 3213 | -9/Exiles | Met EX-DEC 3258 | -9/Exiles | Met EX-BIN 3278 | -9/Exiles | Aligned with FarCom system 3280 | -9/Exiles | Given EX-Vault access code 3310 | -9/Exiles | Opened EX-Vault 3317 | -9/Exiles | Found Gui. Plasma Cannon 3346 | -9/Exiles | Warned to stay clear of 0b10 Research branches 3428 | -9/Exiles | Discovered new exit (range 14) 3442 | -9/Exiles | Left Exiles lab with Gui. Plasma Cannon 3442 | -9/Exiles | Entered Mines 3730 | -8/Mines | Build established: Mutant 3967 | -8/Mines | Discovered new exit (range 10) 3980 | -8/Mines | Entered Materials 3980 | -8/Materials | Evolved 2 slots: Propulsion x2 4288 | -8/Materials | Build established: Scavenger-Mutant 4520 | -8/Materials | Discovered new exit (range 11) 4547 | -8/Materials | Learned location of Lower Caves (-7) 4612 | -8/Materials | Learned location of 1 exit from Storage 4716 | -8/Materials | Identified exit to Factory 4753 | -8/Materials | Learned location of 1 exit from Recycling 4790 | -8/Materials | Lost 3 parts (2n1u) 4822 | -8/Materials | Learned location of 2 exits from Lower Caves 4870 | -8/Materials | Learned 4 Factory zone layouts 5120 | -8/Materials | Identified exit to Garrison 5120 | -8/Materials | Entered Garrison 5152 | -8/Garrison | Triggered checkpoint 5354 | -8/Garrison | Triggered checkpoint 5411 | -8/Garrison | Lost 3 parts (1n2u) 5532 | -8/Garrison | Discovered new exit (range 8) 5668 | -8/Garrison | Build established: Mutant 5781 | -8/Garrison | Discovered new exit (range 8) 5806 | -8/Garrison | Triggered checkpoint 6096 | -8/Garrison | Triggered checkpoint 6166 | -8/Garrison | Discovered new exit (range 10) 6206 | -8/Garrison | Triggered checkpoint 6298 | -8/Garrison | Build established: Scavenger-Mutant 6534 | -8/Garrison | Triggered checkpoint 6975 | -8/Garrison | Installed Relay Interface Framework 7009 | -8/Garrison | Entered Materials 8303 | -8/Materials | Self-destructed Last Messages --------------- Aluminum Leg Sml. Matter Pod Flight Unit Flight Unit Imp. Heat Sink Lgt. Ion Engine Carbon-fiber Leg 08226_ Dropped Heat Sink. 08226_ Acquired Imp. Heat Sink. 08260_ Critical hit (Burn: +37). 08260_ Imp. Ion Engine destroyed. 08292_ Y-45 Defender suffers critical hit (Burn). 08292_ Com. Wheel destroyed. 08293_ Y-45 Defender heat damages Lgt. Treads, Beam Rifle. 08295_ Med. Armor Plating destroyed. 08298_ Destroyed Lgt. Treads. 08298_ Y-45 Defender critical meltdown. 08298_ Hvy. Assault Rifle melted. 08298_ Heat Sink melted. Map ----- +----------------------------------------------------+ | ?????????????????????????????????????????????????? | | ?????????????????????????????????????????????????? | | ?????????????????????????????????????????????????? | | ?????????????????????##??????????????????????????? | | ????????????????????? ??????????????????????????? | | ????????????????????? ??????????????????????????? | | ????????????????????? ####??????????????????????? | | ????????????????????? #??????????????????????? | | ????????????????????? #??????????????????????? | | ????????????????????? #??????????????????????? | | ????????????????????? #??????????????????????? | | ???????#########?????# #??????????????????????? | | ???????# = ! #?????#^ ^#??????????????????????? | | ???????# #?????# #??????????????????????? | | ???????# #?????# #??????????????????????? | | ???????# ####### ### #??????????????? | | ???????# + +??????????????? | | ???????####+#### ###### #??????????????? | | ########### #?????????????????????????? | | # !*=[ # ########## #???????##############????? | | #!= !== # #????????# #???????# """"" #????? | | # "Y"= + #????????# #???????# """"" #????? | | # """ # #????????# #???????# """"" #????? | | ######+#### #????????#/######### #????? | | ?# # #????????#!%! ! # #????? | | ?# """" !# #????????# * @ ######+############ | | ?# """" # ##########a % #???# | | ?# """" # # #???# ########### | | ?# + # ] #???# #????????# | | ?#! """" # """ # #???# ########## | | ?# """" ### "G # #??## w##= ## | | ?# """" #?# """ #= #??# # """ ## | | ?#= #?# ######+####??# # """ ##* | | ?############ #### #???# " / """ ## | | ???# #???# # ### | | ???# #???# # #?? | | ???# #???### ##########?? | | #####+########T########## #?????# #??????????? | | # #??###????????## ######## #??????????? | | # #????########### # """ # #??????????? | | # #????# # # """ *# #??????????? | | # #????# + + """ # #??????????? | | ############???# # # # #??########? | | ?# #???# # # % # #??# """ #? | | ?# """ ############### #? #%#### "T" #? | | ?# "T" #^ =%= #?######! + #? | | ?# # ^ * #??????# ## #? | | ?# # ^^ " #????### ##! #? | | ?# """ + ^""" ############ ## #? | | ?# """ # """ #???# %#= ###+###### | +----------------------------------------------------+ Best States ------------- Heat Dissipation 59 Energy Generation 14 Energy Capacity 275 Matter Stores 300 Matter Capacity 300 Sight Range 16 Terrain Scan Density 10 Base Temperature (-) 100 Armor Coverage 225 Resistance: TH 10 Evasion (%) 44 Recoil Reduction 3 Item Schematics ----------------- None Robot Schematics ------------------ None Fabricated ------------ Nothing Repaired ---------- Nothing Alien Tech Used ----------------- None Achievements -------------- None Challenges ------------ None Game ------ Seed CompanionDispersionSpoofer Manual? 0 Play Time 01:26:21 Cumulative 59.6 hours Start 2025.06.30 @ 08:09:33 End 2025.08.02 @ 19:05:45 Sessions 17 Manual Loads 0 Difficulty Rogue Special Mode None Game No. 117 Rogue 117 Adventurer 0 Explorer 0 Win Type - Total 1 Types 1/0/0/0/0/0/0/0/0/0 Lore% 14 Gallery% 33 Achievement% 31 Wizard Run 0 Options --------- Layout 1 ASCII 0 Keyboard 0 Movement Mouse Keybinds 0 Fullscreen 1 Font 20/SmallcapsGlow Map View 54x42 Zoom Use 0% Tactical HUD 1 Map Filters NONE Filters NONE Steam 0 RUN: d2b8fb7f-9e92-44e2-be87-334f3f7db53d